fUSD/lending_fUSD_20240819
["ID","MTS","AMOUNT","RATE_DAILY","PERIOD"]
[335254279,1724043035054,-1494.63,0.00010999,2]
[335254280,1724043035065,-1494.63,0.00010999,2]
[335254281,1724043035082,-1494.63,0.00010999,2]
[335254282,1724043035091,-1494.63,0.00010999,2]
[335254283,1724043035101,-1494.63,0.00010999,2]
[335254284,1724043035110,-1494.63,0.00010999,2]
[335254285,1724043035122,-1494.79086805,0.00010999,2]
[335254286,1724043035131,-2344.64,0.00010999,2]
[335254287,1724043035141,-2344.64,0.00010999,2]
[335254288,1724043035151,-2344.64,0.00010999,2]
[335254289,1724043035163,-2344.64,0.00010999,2]
[335254290,1724043035173,-2344.64,0.00010999,2]
[335254291,1724043035182,-2344.64,0.00010999,2]
[335254292,1724043035192,-2344.64,0.00010999,2]
[335254293,1724043035201,-2344.64,0.00010999,2]
[335254294,1724043035211,-2344.64,0.00010999,2]
[335254295,1724043035220,-2344.64,0.00010999,2]
[335254296,1724043035229,-2344.64,0.00010999,2]
[335254297,1724043035239,-2344.64,0.00010999,2]
[335254298,1724043035248,-2344.64,0.00010999,2]
[335254299,1724043035257,-2344.64,0.00010999,2]
[335254300,1724043035266,-2344.64,0.00010999,2]
[335254301,1724043035275,-2344.64,0.00010999,2]
[335254302,1724043035284,-2344.64,0.00010999,2]
[335254303,1724043035293,-151.0,0.00010999,2]
[335254304,1724043035302,-2344.64,0.00010999,2]
[335254305,1724043035312,-151.0,0.00010999,2]
[335254306,1724043035321,-2344.64,0.00010999,2]
[335254307,1724043035330,-151.0,0.00010999,2]
[335254308,1724043035339,-2344.64,0.00010999,2]
[335254309,1724043035348,-151.0,0.00010999,2]
[335254310,1724043035357,-1358.44,0.00010999,2]
[335254311,1724043035366,-1669.52528301,0.00010999,2]
[335254312,1724043035388,-292.365,0.00010999,2]
[335254313,1724043035408,-382.74971699,0.00010999,2]
[335254314,1724043035418,-500.66926626,0.00010999,2]
[335254315,1724043035429,-857.77073374,0.00010999,2]
[335254316,1724043035438,-2344.77844217,0.00010999,2]
[335254317,1724043035447,-151.0,0.00010999,2]
[335254318,1724043035456,-295.62102659,0.00010999,2]
[335254325,1724043037991,-1062.81897341,0.00010999,2]
[335254326,1724043038000,-151.0,0.00010999,2]
[335254328,1724043038010,-1358.44,0.00010999,2]
[335254330,1724043038019,-151.0,0.00010999,2]
[335254332,1724043038029,-1358.44,0.00010999,2]
[335254334,1724043038038,-155.157401,0.00010999,2]
[335254336,1724043038047,-1358.44,0.00010999,2]
[335254337,1724043038057,-247.62591703,0.00010999,2]
[335254338,1724043038070,-1110.81408297,0.00010999,2]
[335254339,1724043038083,-1358.44,0.00010999,2]
[335254340,1724043038092,-1358.44,0.00010999,2]
[335254341,1724043038101,-205.13694435,0.00010999,2]
[335254342,1724043038151,-1153.30305565,0.00010999,2]
[335254343,1724043038161,-226.56266542,0.00010999,2]
[335254344,1724043038207,-1131.87733458,0.00010999,2]
[335254345,1724043038217,-1358.44,0.00010999,2]
[335254346,1724043038227,-500.0,0.00010999,2]
[335254347,1724043038236,-500.0,0.00010999,2]
[335254348,1724043038245,-1358.44,0.00010999,2]
[335254349,1724043038256,-500.0,0.00010999,2]
[335254350,1724043038266,-1358.44,0.00010999,2]
[335254351,1724043038276,-500.0,0.00010999,2]
[335254352,1724043038286,-1358.44,0.00010999,2]
[335254353,1724043038296,-1358.44,0.00010999,2]
[335254354,1724043038307,-500.0,0.00010999,2]
[335254355,1724043038317,-1358.44,0.00010999,2]
[335254356,1724043038326,-1358.44,0.00010999,2]
[335254357,1724043038335,-500.0,0.00010999,2]
[335254358,1724043038344,-500.0,0.00010999,2]
[335254359,1724043038353,-1358.44,0.00010999,2]
[335254360,1724043038363,-500.0,0.00010999,2]
[335254361,1724043038372,-1358.44,0.00010999,2]
[335254362,1724043038381,-1358.44,0.00010999,2]
[335254363,1724043038390,-500.0,0.00010999,2]
[335254364,1724043038399,-1358.57961299,0.00010999,2]
[335254365,1724043038408,-500.0,0.00010999,2]
[335254366,1724043038417,-500.0,0.00010999,2]
[335254367,1724043038426,-500.0,0.00010999,2]
[335254368,1724043038435,-500.0,0.00010999,2]
[335254369,1724043038444,-500.0,0.00010999,2]
[335254370,1724043038453,-611.60739957,0.00010999,2]
[335254371,1724043038463,-1618.07,0.00010999,2]
[335254372,1724043038472,-1618.07,0.00010999,2]
[335254373,1724043038484,-1618.07,0.00010999,2]
[335254374,1724043038494,-1618.07,0.00010999,2]
[335254375,1724043038505,-1618.07,0.00010999,2]
[335254376,1724043038514,-1618.07,0.00010999,2]
[335254377,1724043038524,-1618.07,0.00010999,2]
[335254378,1724043038534,-1618.07,0.00010999,2]
[335254379,1724043038544,-1618.07,0.00010999,2]
[335254380,1724043038554,-1618.07,0.00010999,2]
[335254381,1724043038564,-1618.07,0.00010999,2]
[335254382,1724043038575,-1618.07,0.00010999,2]
[335254383,1724043038584,-1104.73,0.00010999,2]
[335254384,1724043038593,-1618.07,0.00010999,2]
[335254385,1724043038602,-1618.07,0.00010999,2]
[335254386,1724043038611,-1104.73,0.00010999,2]
[335254387,1724043038620,-1104.73,0.00010999,2]
[335254388,1724043038630,-1618.07,0.00010999,2]
[335254389,1724043038643,-1618.07,0.00010999,2]
[335254390,1724043038653,-1104.73,0.00010999,2]
[335254391,1724043038663,-1104.73,0.00010999,2]
[335254392,1724043038674,-1618.07,0.00010999,2]
[335254393,1724043038683,-1104.73,0.00010999,2]
[335254394,1724043038693,-1618.07,0.00010999,2]
[335254395,1724043038707,-1618.07,0.00010999,2]
[335254396,1724043038716,-1104.73,0.00010999,2]
[335254397,1724043038727,-1618.07,0.00010999,2]
[335254398,1724043038737,-1104.73,0.00010999,2]
[335254399,1724043038747,-1618.07,0.00010999,2]
[335254400,1724043038757,-1104.73,0.00010999,2]
[335254401,1724043038767,-1618.17226751,0.00010999,2]
[335254402,1724043038776,-1104.73,0.00010999,2]
[335254403,1724043038784,-1104.73,0.00010999,2]
[335254404,1724043038794,-1104.73,0.00010999,2]
[335254405,1724043038803,-1104.73,0.00010999,2]
[335254406,1724043038814,-1104.73,0.00010999,2]
[335254407,1724043038823,-1104.73,0.00010999,2]
[335254408,1724043038832,-1104.73,0.00010999,2]
[335254409,1724043038841,-1104.73,0.00010999,2]
[335254410,1724043038852,-1104.73,0.00010999,2]
[335254411,1724043038863,-1104.73,0.00010999,2]
[335254412,1724043038872,-190.6755443,0.00010999,2]
[335254413,1724043038882,-1104.73,0.00010999,2]
[335254414,1724043038891,-1104.73,0.00010999,2]
[335254415,1724043038900,-1104.96474681,0.00010999,2]
[335254416,1724043038910,-1722.25,0.00010999,2]
[335254417,1724043038919,-1722.25,0.00010999,2]
[335254418,1724043038928,-1722.25,0.00010999,2]
[335254419,1724043038938,-1722.25,0.00010999,2]
[335254420,1724043038948,-1722.25,0.00010999,2]
[335254421,1724043038957,-1722.25,0.00010999,2]
[335254422,1724043038966,-1722.25,0.00010999,2]
[335254423,1724043038976,-1722.25,0.00010999,2]
[335254424,1724043038985,-1722.25,0.00010999,2]
[335254425,1724043038994,-1722.25,0.00010999,2]
[335254426,1724043039003,-1722.25,0.00010999,2]
[335254427,1724043039012,-1722.25,0.00010999,2]
[335254428,1724043039021,-1722.25,0.00010999,2]
[335254429,1724043039062,-1722.25,0.00010999,2]
[335254430,1724043039072,-1722.25,0.00010999,2]
[335254431,1724043039086,-1722.25,0.00010999,2]
[335254432,1724043039095,-1722.25,0.00010999,2]
[335254433,1724043039104,-1722.25,0.00010999,2]
[335254434,1724043039113,-1722.25,0.00010999,2]
[335254435,1724043039123,-1722.25,0.00010999,2]
[335254436,1724043039132,-1722.25,0.00010999,2]
[335254437,1724043039141,-1722.26773444,0.00010999,2]
[335254438,1724043039150,-151.0,0.00010999,2]
[335254439,1724043039161,-151.0,0.00010999,2]
[335254440,1724043039171,-209.3814,0.00010999,2]
[335254441,1724043039180,-1580.127687,0.00010999,2]
[335254442,1724043039189,-1580.127687,0.00010999,2]
[335254443,1724043039198,-1580.127687,0.00010999,2]
[335254444,1724043039207,-1580.127687,0.00010999,2]
[335254445,1724043039216,-1580.127687,0.00010999,2]
[335254446,1724043039225,-1580.127687,0.00010999,2]
[335254447,1724043039234,-1580.127687,0.00010999,2]
[335254448,1724043039243,-1580.127687,0.00010999,2]
[335254449,1724043039252,-1580.127687,0.00010999,2]
[335254450,1724043039261,-1580.127687,0.00010999,2]
[335254451,1724043039270,-1580.127687,0.00010999,2]
[335254452,1724043039279,-1580.127687,0.00010999,2]
[335254453,1724043039288,-1580.127687,0.00010999,2]
[335254454,1724043039296,-1580.127687,0.00010999,2]
[335254455,1724043039305,-1580.127687,0.00010999,2]
[335254456,1724043039314,-1580.127679,0.00010999,2]
[335254457,1724043039328,-620.11,0.00010999,2]
[335254458,1724043039337,-620.11,0.00010999,2]
[335254459,1724043039346,-620.11,0.00010999,2]
[335254460,1724043039355,-620.11,0.00010999,2]
[335254461,1724043039364,-270.60181535,0.00010999,2]
[335254462,1724043039373,-620.11,0.00010999,2]
[335254463,1724043039382,-620.11,0.00010999,2]
[335254464,1724043039390,-620.11,0.00010999,2]
[335254465,1724043039400,-620.11,0.00010999,2]
[335254466,1724043039409,-520.501741,0.00010999,2]
[335254467,1724043039418,-620.11,0.00010999,2]
[335254468,1724043039427,-520.501741,0.00010999,2]
[335254469,1724043039436,-620.11,0.00010999,2]
[335254470,1724043039446,-620.11,0.00010999,2]
[335254471,1724043039455,-520.501741,0.00010999,2]
[335254472,1724043039463,-620.11,0.00010999,2]
[335254473,1724043039472,-520.501741,0.00010999,2]
[335254474,1724043039481,-620.11,0.00010999,2]
[335254475,1724043039490,-520.501741,0.00010999,2]
[335254476,1724043039499,-620.11,0.00010999,2]
[335254477,1724043039508,-620.11,0.00010999,2]
[335254478,1724043039517,-520.501741,0.00010999,2]
[335254479,1724043039526,-620.11,0.00010999,2]
[335254480,1724043039535,-520.501741,0.00010999,2]
[335254481,1724043039544,-620.11,0.00010999,2]
[335254482,1724043039552,-620.11,0.00010999,2]
[335254483,1724043039562,-520.501741,0.00010999,2]
[335254484,1724043039573,-620.11,0.00010999,2]
[335254485,1724043039582,-620.11,0.00010999,2]
[335254486,1724043039591,-620.11,0.00010999,2]
[335254487,1724043039600,-620.27601429,0.00010999,2]
[335254488,1724043039609,-520.501741,0.00010999,2]
[335254489,1724043039618,-520.501741,0.00010999,2]
[335254490,1724043039627,-520.501741,0.00010999,2]
[335254491,1724043039636,-520.501741,0.00010999,2]
[335254492,1724043039645,-520.501741,0.00010999,2]
[335254493,1724043039654,-520.501741,0.00010999,2]
[335254494,1724043039663,-520.501741,0.00010999,2]
[335254495,1724043039672,-520.501749,0.00010999,2]
[335254496,1724043039682,-628.95048865,0.00010999,2]
[335254497,1724043039691,-439.56904759,0.00010999,2]
[335254498,1724043039700,-151.0,0.00010999,2]
[335254499,1724043039709,-151.0,0.00010999,2]
[335254500,1724043039718,-151.0,0.00010999,2]
[335254501,1724043039727,-151.0,0.00010999,2]
[335254502,1724043039737,-151.0,0.00010999,2]
[335254503,1724043039746,-151.0,0.00010999,2]
[335254504,1724043039756,-256.765186,0.00010999,2]
[335254505,1724043039765,-500.0,0.00010999,2]
[335254506,1724043039774,-500.0,0.00010999,2]
[335254507,1724043039784,-500.0,0.00010999,2]
[335254508,1724043039793,-500.0,0.00010999,2]
[335254509,1724043039802,-500.0,0.00010999,2]
[335254510,1724043039812,-500.0,0.00010999,2]
[335254512,1724043039822,-500.0,0.00010999,2]
[335254513,1724043039831,-500.0,0.00010999,2]
[335254514,1724043039840,-500.0,0.00010999,2]
[335254515,1724043039849,-500.0,0.00010999,2]
[335254516,1724043039859,-500.0,0.00010999,2]
[335254518,1724043039867,-500.0,0.00010999,2]
[335254519,1724043039877,-500.0,0.00010999,2]
[335254520,1724043039887,-500.0,0.00010999,2]
[335254521,1724043039896,-500.0,0.00010999,2]
[335254522,1724043039906,-500.0,0.00010999,2]
[335254523,1724043039915,-500.0,0.00010999,2]
[335254524,1724043039925,-500.0,0.00010999,2]
[335254525,1724043039935,-151.0,0.00010999,2]
[335254526,1724043039944,-500.0,0.00010999,2]
[335254527,1724043039954,-360.47277349,0.00010999,2]
[335254528,1724043039964,-500.0,0.00010999,2]
[335254529,1724043039973,-500.0,0.00010999,2]
[335254530,1724043039982,-500.0,0.00010999,2]
[335254531,1724043039991,-500.0,0.00010999,2]
[335254532,1724043040001,-521.7838848,0.00010999,2]
[335254533,1724043040010,-582181.35810233,0.00011,2]
[335254542,1724043040158,-665.04732599,0.00011,2]
[335254547,1724043040193,-1309.3467499,0.00011,2]
[335254549,1724043040209,-528.72304049,0.00011,2]
[335254554,1724043040264,-392.88321767,0.00011,2]
[335254555,1724043040275,-14149.63151993,0.00011,2]
[335254556,1724043040536,-29356.99999999,0.00011,2]
[335254557,1724043040593,-452.26930998,0.00011,2]
[335254575,1724043043109,-155.0,9.988e-05,2]
[335254577,1724043043119,-323.34308508,0.00011,2]
[335254597,1724043046172,-352.5162006,0.00011,2]
[335254598,1724043046229,-335.97564,0.00011,2]
[335254599,1724043144456,267.24,8.806e-05,2]
[335254600,1724043272019,-183.97,9.999e-05,2]
[335254601,1724043272041,-531.39122984,0.00010566,2]
[335254602,1724043272064,-256.49288835,0.00010566,2]
[335254603,1724043272086,-235.95346244,0.00010566,2]
[335254604,1724043272108,-155.0,0.00010566,2]
[335254605,1724043272129,-251.44473745,0.00010566,2]
[335254606,1724043272155,-275.1054945,0.00010566,2]
[335254607,1724043272179,-524.25987859,0.00010566,2]
[335254608,1724043272202,-155.43804954,0.00010566,2]
[335254609,1724043272225,-2342.45587798,0.00010566,2]
[335254610,1724043272249,-155.44784194,0.00010566,2]
[335254611,1724043272272,-528.80773361,0.00010566,2]
[335254612,1724043272294,-159.58732349,0.00010566,2]
[335254613,1724043272316,-3284.640274,0.0001062,2]
[335254614,1724043272338,-150.0,0.00010673,2]
[335254615,1724043272360,-155.46554055,0.00010674,2]
[335254616,1724043272382,-155.61945661,0.00010674,2]
[335254617,1724043272404,-155.0,0.00010674,2]
[335254618,1724043272425,-440.02330588,0.00010674,2]
[335254619,1724043272448,-175.02110761,0.00010674,2]
[335254620,1724043272470,-179.4623719,0.00010674,2]
[335254621,1724043272493,-698.86020573,0.00010674,2]
[335254622,1724043272516,-155.31848555,0.00010674,2]
[335254623,1724043272538,-547.86236267,0.00010674,2]
[335254624,1724043272560,-892.04452683,0.00010674,2]
[335254625,1724043272583,-309.98957003,0.00010674,2]
[335254626,1724043272606,-155.87937532,0.00010674,2]
[335254627,1724043272630,-6579.45889959,0.00010889,2]
[335254628,1724043279546,-155.40567881,0.00010566,2]
[335254629,1724043279568,-155.35762313,0.00010674,2]
[335254630,1724043279590,-814.90370041,0.00010889,2]
[335254631,1724043279615,-10835.25878375,0.0001089,2]
[335254632,1724043279641,-176.2275,0.00010898,2]
[335254633,1724043279665,-7862.8467139,0.000109,2]
[335254634,1724043280011,-20000.0,0.000109,2]
[335254637,1724043650807,278.56,8.219e-05,2]
[335254638,1724043909251,263.06,9.898e-05,2]
[335254639,1724043914324,150.0,9.888e-05,2]
[335254640,1724043920828,450.09,9.882e-05,2]
[335254641,1724043982643,197.23721453,9.899e-05,2]
[335254642,1724044026381,250.0,9.83e-05,2]
[335254643,1724044035951,15490.03475058,9.86e-05,2]
[335254645,1724044046536,155.31493906,8.687e-05,2]
[335254646,1724044100542,500.0,9.879e-05,2]
[335254647,1724044204486,-442.04,9.908e-05,2]
[335254648,1724044204516,-300.0,9.976e-05,2]
[335254650,1724044204546,-3047.4693556,9.977e-05,2]
[335254651,1724044204599,-3789.5093556,9.977e-05,2]
[335254653,1724044204675,-2171.22647548,9.977e-05,2]
[335254660,1724044232238,-297.89887545,9.922e-05,2]
[335254661,1724044232248,-52.10112455,9.977e-05,2]
[335254662,1724044232259,-4670.58140367,9.977e-05,2]
[335254663,1724044232271,-1151.46668097,9.977e-05,2]
[335254664,1724044232297,-334.50747262,9.977e-05,2]
[335254665,1724044232355,-522.58091288,9.977e-05,2]
[335254681,1724044232902,-2901.53875088,9.977e-05,2]
[335254682,1724044232913,-2889.96806604,9.977e-05,2]
[335254683,1724044232924,-1205.83906467,9.977e-05,2]
[335254684,1724044232935,-399.12662878,9.977e-05,2]
[335254685,1724044232955,-97.86470826,9.977e-05,2]
[335254686,1724044232964,-1699.54077851,0.0001,2]
[335254687,1724044232975,-335.92939992,0.0001,2]
[335254688,1724044232986,-348.89010204,0.0001,2]
[335254689,1724044232998,-1491.90374335,0.0001,2]
[335254690,1724044233007,-748.72,0.00010022,2]
[335254691,1724044233017,-549.91,0.00010282,2]
[335254692,1724044233026,-278.56,0.00010472,2]
[335254693,1724044233035,-150.99,0.00010472,2]
[335254694,1724044233044,-125.59448726,0.00010472,2]
[335254696,1724044238237,-4794.24611515,0.00010471,2]
[335254697,1724044238247,-303.6,0.000105,2]
[335254698,1724044238257,-984.57064758,0.00010505,2]
[335254699,1724044238268,-4419.7095103,0.00010505,2]
[335254700,1724044238277,-150.0,0.00010578,2]
[335254701,1724044238286,-172.25,0.00010678,2]
[335254702,1724044238295,-499.99,0.00010678,2]
[335254703,1724044238304,-5164.89,0.00010678,2]
[335254704,1724044238313,-150.0,0.00010698,2]
[335254705,1724044238322,-649.2,0.00010699,2]
[335254706,1724044238331,-1461.13,0.00010699,2]
[335254707,1724044238341,-897.43,0.00010699,2]
[335254708,1724044238350,-4540.49,0.00010699,2]
[335254709,1724044238359,-150.99,0.00010699,2]
[335254710,1724044238368,-2033.78198603,0.00010699,2]
[335254711,1724044238378,-2502.77061017,0.00010699,2]
[335254712,1724044238387,-150.38,0.000107,2]
[335254713,1724044238397,-888.04,0.000107,2]
[335254714,1724044238406,-153.04,0.000107,2]
[335254715,1724044238415,-1276.0146638,0.00010713,2]
[335254716,1724044238424,-174.89,0.00010713,2]
[335254717,1724044238433,-1074.0,0.00010775,2]
[335254718,1724044238442,-1157.03052786,0.00010799,2]
[335254719,1724044238455,-1207.1225,0.000108,2]
[335254720,1724044238465,-2265.6999,0.000108,2]
[335254721,1724044238474,-401.62337545,0.000108,2]
[335254722,1724044238483,-24586.01001984,0.000108,2]
[335254723,1724044238495,-2690.65746177,0.000108,2]
[335254724,1724044238507,-445.34091486,0.000108,2]
[335254725,1724044238518,-655.1269522,0.000108,2]
[335254726,1724044238534,-8436.90292325,0.000108,2]
[335254727,1724044238545,-616.0766574,0.000108,2]
[335254728,1724044238564,-504.3514221,0.000108,2]
[335254729,1724044238575,-851.89556167,0.000108,2]
[335254730,1724044238586,-1367.38108083,0.000108,2]
[335254731,1724044238595,-150.0,0.00010852,2]
[335254732,1724044238604,-150.0,0.00010852,2]
[335254733,1724044238613,-150.0,0.00010852,2]
[335254734,1724044238623,-150.0,0.00010852,2]
[335254735,1724044238631,-155.70321692,0.00010862,2]
[335254736,1724044238640,-164.41632778,0.00010862,2]
[335254737,1724044238649,-219.05448022,0.00010862,2]
[335254738,1724044238658,-178.63735846,0.00010888,2]
[335254739,1724044238668,-219.05448022,0.00010888,2]
[335254740,1724044238676,-184.92147885,0.00010888,2]
[335254741,1724044238685,-167.19723832,0.00010888,2]
[335254742,1724044238695,-347.92812216,0.00010888,2]
[335254743,1724044238704,-155.0,0.00010888,2]
[335254744,1724044238712,-139.07966586,0.0001089,2]
[335254761,1724044240849,-1139.21329126,0.00010713,2]
[335254762,1724044240859,-43.58670874,0.00010713,2]
[335254763,1724044240962,-1464.92079644,0.00010713,2]
[335254764,1724044240971,-297.57530605,0.00010862,2]
[335254765,1724044240981,-255.3689167,0.00010888,2]
[335254766,1724044240990,-101.84627102,0.0001089,2]
[335254767,1724044241000,-485.22914892,0.0001089,2]
[335254768,1724044241009,-357.4813523,0.0001089,2]
[335254769,1724044241018,-155.0,0.0001089,2]
[335254770,1724044241028,-238.91923689,0.0001089,2]
[335254773,1724044243398,-89.35328617,0.0001089,2]
[335254774,1724044243408,-155.0,0.0001089,2]
[335254775,1724044243417,-155.0,0.0001089,2]
[335254776,1724044243427,-166.1781,0.00010899,2]
[335254777,1724044243436,-2743.23388574,0.00010899,2]
[335254781,1724044243976,-904.85372732,0.00010899,2]
[335254782,1724044246392,-252.76883574,0.00010899,2]
[335254783,1724044246404,-1366.69381511,0.00010899,2]
[335254784,1724044246415,-1458.35933609,0.00010899,2]
[335254785,1724044246424,-1911.06691116,0.00010899,2]
[335254786,1724044246433,-258.14595329,0.00010899,2]
[335254787,1724044246444,-399.98561821,0.00010899,2]
[335254788,1724044246461,-1005.73912808,0.00010899,2]
[335254789,1724044246472,-247.19621151,0.00010899,2]
[335254790,1724044246481,-1911.06691109,0.00010899,2]
[335254791,1724044246491,-1911.06691109,0.00010899,2]
[335254792,1724044246499,-1911.06691109,0.00010899,2]
[335254793,1724044246509,-1911.06691109,0.00010899,2]
[335254794,1724044246519,-1911.06691109,0.00010899,2]
[335254795,1724044246529,-1911.06691109,0.00010899,2]
[335254796,1724044246539,-1911.06691109,0.00010899,2]
[335254797,1724044246548,-1877.49,0.00010899,2]
[335254798,1724044246559,-1222.55,0.00010899,2]
[335254799,1724044246569,-500.0,0.00010899,2]
[335254800,1724044246579,-500.0,0.00010899,2]
[335254801,1724044246588,-500.0,0.00010899,2]
[335254802,1724044246597,-493.4,0.00010899,2]
[335254804,1724044246606,-5599.4383861,0.000109,2]
[335254806,1724044246616,-30125.4894,0.000109,2]
[335254808,1724044246625,-825.2681,0.000109,2]
[335254810,1724044246635,-36532.8122,0.000109,2]
[335254812,1724044246645,-2500.0,0.000109,2]
[335254814,1724044246654,-5437.28506309,0.000109,2]
[335254815,1724044246663,-785.73958625,0.000109,4]
[335254817,1724044246672,-2500.0,0.000109,2]
[335254818,1724044246681,-183.97398844,0.000109,2]
[335254819,1724044246690,-1911.06691109,0.000109,2]
[335254820,1724044246700,-256.3785692,0.000109,2]
[335254823,1724044246710,-1580.20923407,0.000109,2]
[335254828,1724044475635,273.86,8.219e-05,2]
[335254829,1724044650276,-13057.422979,9.943e-05,2]
[335254830,1724044650302,-415.33143209,9.943e-05,2]
[335254831,1724044650505,-300.0,9.961e-05,2]
[335254832,1724044650528,-300.0,9.961e-05,2]
[335254833,1724044650550,-699.22333,0.0001,2]
[335254834,1724044650573,-369.67,0.0001,2]
[335254835,1724044650598,-639.92,0.00010053,2]
[335254836,1724044650622,-155.1,0.00010078,2]
[335254837,1724044650644,-273.86,0.00010477,2]
[335254838,1724044650668,-221.02,0.00010505,2]
[335254839,1724044650688,-2111.63219542,0.00010713,2]
[335254840,1724044650710,-283.60859595,0.00010713,2]
[335254841,1724044650731,-260.0992,0.00010799,2]
[335254842,1724044650753,-913.11226754,0.00010799,2]
[335254843,1724044651338,-2872.50343246,0.00010799,2]
[335254844,1724044651360,-150.0,0.00010799,2]
[335254845,1724044651383,-155.0,0.00010799,2]
[335254846,1724044651405,-16822.49656754,0.000108,2]
[335254847,1724044651841,-11033.32853246,0.000108,2]
[335254848,1724044651863,-807.4565,0.000108,2]
[335254849,1724044651885,-464.8085,0.000108,2]
[335254850,1724044651906,-401.62337545,0.000108,2]
[335254851,1724044651928,-1004.0,0.000108,2]
[335254852,1724044651950,-1287.99776217,0.00010835,2]
[335254853,1724044651972,-585.51,0.00010867,2]
[335254854,1724044651996,-852.459,0.00010867,2]
[335254855,1724044652022,-179.8323061,0.00010888,2]
[335254856,1724044652047,-303.98208233,0.00010888,2]
[335254857,1724044652070,-1976.88819,0.0001089,2]
[335254858,1724044652093,-195.8396,0.00010899,2]
[335254859,1724044652116,-906.27415149,0.00010899,2]
[335254860,1724044652347,-19093.72584851,0.00010899,2]
[335254861,1724044652371,-500.0,0.00010899,2]
[335254862,1724044652393,-406.27415149,0.00010899,2]
[335254863,1724044653616,-157.71824926,0.00010862,2]
[335254864,1724044653641,-93.72584851,0.00010899,2]
[335254865,1724044653665,-500.0,0.00010899,2]
[335254866,1724044653689,-770.91379845,0.000109,2]
[335254867,1724044653712,-265.12881196,0.000109,2]
[335254868,1724044653734,-163.30126044,0.000109,2]
[335254869,1724044653760,-201.66611668,0.000109,2]
[335254870,1724044653783,-654.78298854,0.000109,4]
[335254871,1724044653809,-2000.0,0.000109,2]
[335254872,1724044653832,-200.0,0.000109,2]
[335254873,1724044653858,-1197.6,0.000109,2]
[335254874,1724044653881,-1000.0,0.000109,2]
[335254875,1724044653906,-192.47075282,0.00010949,2]
[335254876,1724044653929,-155.21216456,0.00010949,2]
[335254877,1724044653952,-420.0,0.00010957,2]
[335254878,1724044653978,-420.0,0.00010957,2]
[335254879,1724044654002,-3294.1747,0.00010959,2]
[335254880,1724044654025,-782.78,0.00010959,2]
[335254881,1724044654049,-155.0,0.00010979,2]
[335254882,1724044654072,-1027.3279663,0.00010992,2]
[335254883,1724044654094,-1027.3279663,0.00010992,2]
[335254884,1724044654117,-1027.3279663,0.00010992,2]
[335254885,1724044654139,-1027.3279663,0.00010992,2]
[335254886,1724044654162,-1027.3279663,0.00010992,2]
[335254887,1724044654186,-500.0,0.00010998,2]
[335254888,1724044654211,-500.0,0.00010998,2]
[335254889,1724044654235,-150.99,0.00010998,2]
[335254890,1724044654261,-1087.89547728,0.00010998,2]
[335254891,1724044654301,-140.79452272,0.00010998,2]
[335254892,1724044654324,-1799.26,0.00010998,2]
[335254893,1724044654347,-500.0,0.00010998,2]
[335254894,1724044654372,-500.0,0.00010998,2]
[335254895,1724044654395,-516.22,0.00010998,2]
[335254896,1724044654418,-151.0,0.00010999,2]
[335254897,1724044654441,-151.0,0.00010999,2]
[335254898,1724044654464,-500.0,0.00010999,2]
[335254899,1724044654487,-500.0,0.00010999,2]
[335254900,1724044654512,-500.0,0.00010999,2]
[335254901,1724044654535,-500.0,0.00010999,2]
[335254902,1724044654558,-222.28055987,0.00010999,2]
[335254903,1724044654583,-14019.44491741,0.00010999,2]
[335254904,1724044655958,-3092.78495432,0.000109,2]
[335254905,1724044655980,-5996.32180828,0.00010999,2]
[335254906,1724044656004,-500.0,0.00010999,2]